[Event "Titled Tuesday Blitz February 07 Early 2023"]
[White "Mathieu, Phileas"]
[Black "The_Sherman_Variation"]
[WhiteFideId "36048410"]
[WhiteElo "2374"]
[BlackElo "2461"]
[Result "0-1"]
[Round "08"]
[TimeControl "180+2"]
[Date "2023.02.07"]
[WhiteClock "0:00:08"]
[BlackClock "0:00:17"]

1. e4 {[%clk 0:03:00]}  c6 {[%clk 0:02:55]} 2. Nc3 {[%clk 0:02:59]}  d5 {[%clk 0:02:55]} 3. Nf3 {[%clk 0:03:00]}  dxe4 {[%clk 0:02:56]} 4. Nxe4 {[%clk 0:03:01]}  Nf6 {[%clk 0:02:56]} 5. Neg5 {[%clk 0:03:00]}  h6 {[%clk 0:02:53]} 6. Nxf7 {[%clk 0:03:01]}  Kxf7 {[%clk 0:02:53]} 7. Ne5+ {[%clk 0:03:02]}  Ke8 {[%clk 0:02:52]} 8. Bd3 {[%clk 0:03:01]}  Qd5 {[%clk 0:02:38]} 9. Bg6+ {[%clk 0:02:59]}  Kd8 {[%clk 0:02:38]} 10. Nf7+ {[%clk 0:03:00]}  Kc7 {[%clk 0:02:37]} 11. O-O {[%clk 0:02:38]}  Rg8 {[%clk 0:02:33]} 12. d4 {[%clk 0:02:38]}  Bf5 {[%clk 0:02:22]} 13. Bf4+ {[%clk 0:02:38]}  Kc8 {[%clk 0:02:22]} 14. c4 {[%clk 0:02:37]}  Qe4 {[%clk 0:01:58]} 15. Bxf5+ {[%clk 0:02:27]}  Qxf5 {[%clk 0:01:59]} 16. Bg3 {[%clk 0:02:27]}  Nbd7 {[%clk 0:01:54]} 17. d5 {[%clk 0:02:23]}  c5 {[%clk 0:01:26]} 18. Re1 {[%clk 0:02:16]}  Ne4 {[%clk 0:01:19]} 19. Rxe4 {[%clk 0:01:30]}  Qxe4 {[%clk 0:01:16]} 20. b4 {[%clk 0:01:30]}  Qf5 {[%clk 0:01:14]} 21. bxc5 {[%clk 0:01:28]}  Nxc5 {[%clk 0:00:59]} 22. Qd4 {[%clk 0:01:24]}  Nd7 {[%clk 0:00:53]} 23. c5 {[%clk 0:01:16]}  Qf6 {[%clk 0:00:38]} 24. Ne5 {[%clk 0:01:15]}  g5 {[%clk 0:00:32]} 25. c6 {[%clk 0:01:15]}  Nb6 {[%clk 0:00:29]} 26. Qg4+ {[%clk 0:00:48]}  e6 {[%clk 0:00:25]} 27. dxe6 {[%clk 0:00:48]}  Be7 {[%clk 0:00:22]} 28. cxb7+ {[%clk 0:00:47]}  Kxb7 {[%clk 0:00:20]} 29. Qe4+ {[%clk 0:00:47]}  Ka6 {[%clk 0:00:19]} 30. Qd3+ {[%clk 0:00:43]}  Kb7 {[%clk 0:00:19]} 31. Rb1 {[%clk 0:00:33]}  Rac8 {[%clk 0:00:17]} 32. Qe4+ {[%clk 0:00:27]}  Ka6 {[%clk 0:00:17]} 33. Nd7 {[%clk 0:00:22]}  Qc3 {[%clk 0:00:14]} 34. a4 {[%clk 0:00:11]}  Qc1+ {[%clk 0:00:13]} 35. Qe1 {[%clk 0:00:09]}  Qxe1+ {[%clk 0:00:13]} 36. Rxe1 {[%clk 0:00:10]}  Nxa4 {[%clk 0:00:13]} 37. Ra1 {[%clk 0:00:09]}  Kb5 {[%clk 0:00:13]} 38. h3 {[%clk 0:00:07]}  Rcd8 {[%clk 0:00:13]} 39. Rb1+ {[%clk 0:00:08]}  Ka5 {[%clk 0:00:13]} 40. Rb7 {[%clk 0:00:08]}  Nb6 {[%clk 0:00:12]} 41. Rxa7+ {[%clk 0:00:07]}  Kb5 {[%clk 0:00:13]} 42. Ne5 {[%clk 0:00:07]}  Rd1+ {[%clk 0:00:11]} 43. Kh2 {[%clk 0:00:07]}  Bd6 {[%clk 0:00:12]} 44. Rb7 {[%clk 0:00:06]}  Re8 {[%clk 0:00:12]} 45. Rxb6+ {[%clk 0:00:06]}  Kxb6 {[%clk 0:00:12]} 46. Nc4+ {[%clk 0:00:07]}  Kc6 {[%clk 0:00:13]} 47. Nxd6 {[%clk 0:00:05]}  Rxd6 {[%clk 0:00:13]} 48. Bxd6 {[%clk 0:00:04]}  Kxd6 {[%clk 0:00:14]} 49. Kg3 {[%clk 0:00:05]}  Kxe6 {[%clk 0:00:15]} 50. Kg4 {[%clk 0:00:06]}  Kf6 {[%clk 0:00:16]} 51. g3 {[%clk 0:00:06]}  Re4+ {[%clk 0:00:15]} 52. f4 {[%clk 0:00:07]}  Kf7 {[%clk 0:00:15]} 53. Kf3 {[%clk 0:00:07]}  Rc4 {[%clk 0:00:15]} 54. Kg4 {[%clk 0:00:07]}  Kg6 {[%clk 0:00:16]} 55. h4 {[%clk 0:00:07]}  h5+ {[%clk 0:00:16]} 56. Kf3 {[%clk 0:00:08]}  g4+ {[%clk 0:00:17]} 0-1


[Site "https://www.chess.com"]

[Event "Titled Tuesday Blitz February 07 Early 2023"]
[White "Cella, Glaucio Dalla Cortt"]
[Black "Mazurkiewicz, Michal"]
[WhiteFideId "2119455"]
[BlackFideId "1124943"]
[WhiteElo "1894"]
[BlackElo "2145"]
[Result "1-0"]
[Round "08"]
[TimeControl "180+2"]
[Date "2023.02.07"]
[WhiteClock "0:01:22"]
[BlackClock "0:00:02"]

1. e4 {[%clk 0:02:55]}  d6 {[%clk 0:03:00]} 2. Nf3 {[%clk 0:02:55]}  Nf6 {[%clk 0:03:00]} 3. Nc3 {[%clk 0:02:54]}  c6 {[%clk 0:03:01]} 4. d4 {[%clk 0:02:55]}  Bg4 {[%clk 0:03:01]} 5. Be2 {[%clk 0:02:52]}  e6 {[%clk 0:03:01]} 6. O-O {[%clk 0:02:51]}  d5 {[%clk 0:03:01]} 7. e5 {[%clk 0:02:50]}  Nfd7 {[%clk 0:03:02]} 8. h3 {[%clk 0:02:29]}  Bh5 {[%clk 0:03:02]} 9. Ng5 {[%clk 0:02:24]}  Bg6 {[%clk 0:03:02]} 10. Bh5 {[%clk 0:02:18]}  Be7 {[%clk 0:03:02]} 11. Bxg6 {[%clk 0:02:12]}  hxg6 {[%clk 0:03:03]} 12. Qg4 {[%clk 0:02:12]}  Bxg5 {[%clk 0:02:51]} 13. Bxg5 {[%clk 0:02:13]}  Qb6 {[%clk 0:02:51]} 14. Nd1 {[%clk 0:02:00]}  c5 {[%clk 0:02:50]} 15. dxc5 {[%clk 0:02:00]}  Qxc5 {[%clk 0:02:50]} 16. Be3 {[%clk 0:01:57]}  Qc7 {[%clk 0:02:33]} 17. f4 {[%clk 0:01:56]}  Nc6 {[%clk 0:02:34]} 18. b3 {[%clk 0:01:53]}  d4 {[%clk 0:02:24]} 19. Bf2 {[%clk 0:01:51]}  Nb6 {[%clk 0:02:25]} 20. c3 {[%clk 0:01:49]}  d3 {[%clk 0:02:14]} 21. c4 {[%clk 0:01:47]}  O-O-O {[%clk 0:02:12]} 22. Nc3 {[%clk 0:01:46]}  a6 {[%clk 0:01:32]} 23. Rfd1 {[%clk 0:01:45]}  Nb4 {[%clk 0:01:26]} 24. Ne4 {[%clk 0:01:41]}  Kb8 {[%clk 0:01:01]} 25. Qf3 {[%clk 0:01:41]}  Nd7 {[%clk 0:00:47]} 26. a3 {[%clk 0:01:38]}  Nc2 {[%clk 0:00:42]} 27. Rac1 {[%clk 0:01:38]}  Nb6 {[%clk 0:00:29]} 28. Rxd3 {[%clk 0:01:34]}  Nxa3 {[%clk 0:00:20]} 29. Bc5 {[%clk 0:01:32]}  Rxd3 {[%clk 0:00:04]} 30. Qxd3 {[%clk 0:01:33]}  Rd8 {[%clk 0:00:05]} 31. Bd6 {[%clk 0:01:24]}  Rxd6 {[%clk 0:00:04]} 32. Qxd6 {[%clk 0:01:24]}  Kc8 {[%clk 0:00:02]} 33. Qxa3 {[%clk 0:01:22]}  Qc5+ {[%clk 0:00:02]} 34. Qxc5+ {[%clk 0:01:22]} 1-0


[Site "https://www.chess.com"]

[Event "Titled Tuesday Blitz February 07 Early 2023"]
[White "Gutkin, Ilya"]
[Black "Vivas Zamora, Fabian Ernesto"]
[WhiteFideId "16203470"]
[BlackFideId "3902480"]
[WhiteElo "2273"]
[BlackElo "2346"]
[Result "1-0"]
[Round "08"]
[TimeControl "180+2"]
[Date "2023.02.07"]
[WhiteClock "0:00:06"]
[BlackClock "0:00:02"]

1. Nf3 {[%clk 0:03:00]}  Nf6 {[%clk 0:02:57]} 2. g3 {[%clk 0:03:00]}  g6 {[%clk 0:02:57]} 3. b3 {[%clk 0:03:00]}  Bg7 {[%clk 0:02:58]} 4. Bb2 {[%clk 0:03:01]}  O-O {[%clk 0:02:57]} 5. Bg2 {[%clk 0:03:01]}  c5 {[%clk 0:02:50]} 6. c4 {[%clk 0:03:02]}  Nc6 {[%clk 0:02:45]} 7. O-O {[%clk 0:03:01]}  d5 {[%clk 0:02:44]} 8. cxd5 {[%clk 0:03:02]}  Nxd5 {[%clk 0:02:44]} 9. Bxg7 {[%clk 0:03:03]}  Kxg7 {[%clk 0:02:45]} 10. d4 {[%clk 0:03:03]}  cxd4 {[%clk 0:01:51]} 11. Nxd4 {[%clk 0:03:04]}  Nxd4 {[%clk 0:01:51]} 12. Qxd4+ {[%clk 0:03:05]}  Nf6 {[%clk 0:01:52]} 13. Qe5 {[%clk 0:03:04]}  Qb6 {[%clk 0:01:36]} 14. Nc3 {[%clk 0:03:02]}  Be6 {[%clk 0:01:25]} 15. Na4 {[%clk 0:03:02]}  Qd6 {[%clk 0:00:56]} 16. Qxd6 {[%clk 0:03:01]}  exd6 {[%clk 0:00:57]} 17. Bxb7 {[%clk 0:02:59]}  Rab8 {[%clk 0:00:58]} 18. Ba6 {[%clk 0:02:52]}  Nd5 {[%clk 0:00:42]} 19. Rfd1 {[%clk 0:02:43]}  Nb4 {[%clk 0:00:32]} 20. Rxd6 {[%clk 0:02:25]}  Rfd8 {[%clk 0:00:31]} 21. Rxd8 {[%clk 0:02:20]}  Rxd8 {[%clk 0:00:32]} 22. Bd3 {[%clk 0:02:09]}  Nxd3 {[%clk 0:00:28]} 23. Rd1 {[%clk 0:02:06]}  Rc8 {[%clk 0:00:13]} 24. Rxd3 {[%clk 0:01:54]}  Rc2 {[%clk 0:00:13]} 25. Nc3 {[%clk 0:01:54]}  Bf5 {[%clk 0:00:11]} 26. Re3 {[%clk 0:01:54]}  Bh3 {[%clk 0:00:11]} 27. Rd3 {[%clk 0:01:37]}  Rc1+ {[%clk 0:00:05]} 28. Nd1 {[%clk 0:01:36]}  Bf5 {[%clk 0:00:06]} 29. Rd2 {[%clk 0:01:34]}  Bc2 {[%clk 0:00:06]} 30. Kg2 {[%clk 0:01:22]}  Bxd1 {[%clk 0:00:06]} 31. Kf3 {[%clk 0:01:15]}  Bc2 {[%clk 0:00:06]} 32. Rd7 {[%clk 0:01:10]}  a5 {[%clk 0:00:05]} 33. Ra7 {[%clk 0:01:06]}  a4 {[%clk 0:00:05]} 34. Rxa4 {[%clk 0:01:01]}  Ra1 {[%clk 0:00:06]} 35. Ke3 {[%clk 0:00:57]}  Bb1 {[%clk 0:00:03]} 36. Kd4 {[%clk 0:00:44]}  Rxa2 {[%clk 0:00:03]} 37. Rxa2 {[%clk 0:00:36]}  Bxa2 {[%clk 0:00:04]} 38. b4 {[%clk 0:00:33]}  Kf6 {[%clk 0:00:04]} 39. b5 {[%clk 0:00:32]}  Ke7 {[%clk 0:00:04]} 40. Kc5 {[%clk 0:00:27]}  Kd7 {[%clk 0:00:05]} 41. e4 {[%clk 0:00:27]}  Bb1 {[%clk 0:00:04]} 42. e5 {[%clk 0:00:26]}  Be4 {[%clk 0:00:04]} 43. f4 {[%clk 0:00:25]}  Ke6 {[%clk 0:00:04]} 44. b6 {[%clk 0:00:22]}  g5 {[%clk 0:00:04]} 45. Kd4 {[%clk 0:00:10]}  Kf5 {[%clk 0:00:03]} 46. fxg5 {[%clk 0:00:08]}  Bb7 {[%clk 0:00:03]} 47. h4 {[%clk 0:00:07]}  Kg4 {[%clk 0:00:03]} 48. e6 {[%clk 0:00:07]}  fxe6 {[%clk 0:00:03]} 49. Ke5 {[%clk 0:00:07]}  Bd5 {[%clk 0:00:01]} 50. Kf6 {[%clk 0:00:06]}  Kxg3 {[%clk 0:00:01]} 51. h5 {[%clk 0:00:06]}  Kh4 {[%clk 0:00:01]} 52. g6 {[%clk 0:00:06]}  hxg6 {[%clk 0:00:02]} 53. hxg6 {[%clk 0:00:06]}  e5 {[%clk 0:00:02]} 54. Kxe5 {[%clk 0:00:06]} 1-0


[Site "https://www.chess.com"]

[Event "Titled Tuesday Blitz February 07 Early 2023"]
[White "Shuvalov, Evgenij"]
[Black "Cherniaiev, Tykhon"]
[WhiteFideId "4187237"]
[BlackFideId "14182360"]
[WhiteElo "2038"]
[BlackElo "2330"]
[Result "0-1"]
[Round "08"]
[TimeControl "180+2"]
[Date "2023.02.07"]
[WhiteClock "0:00:02"]
[BlackClock "0:00:07"]

1. d4 {[%clk 0:02:52]}  Nf6 {[%clk 0:03:00]} 2. c4 {[%clk 0:02:52]}  e6 {[%clk 0:03:00]} 3. Nc3 {[%clk 0:02:51]}  d5 {[%clk 0:03:01]} 4. cxd5 {[%clk 0:02:50]}  exd5 {[%clk 0:03:01]} 5. Bg5 {[%clk 0:02:50]}  Be7 {[%clk 0:03:01]} 6. e3 {[%clk 0:02:50]}  O-O {[%clk 0:03:01]} 7. Bd3 {[%clk 0:02:50]}  c5 {[%clk 0:02:57]} 8. dxc5 {[%clk 0:02:48]}  Bxc5 {[%clk 0:02:56]} 9. Qc2 {[%clk 0:02:42]}  h6 {[%clk 0:02:43]} 10. Bxf6 {[%clk 0:02:42]}  Qxf6 {[%clk 0:02:43]} 11. Nxd5 {[%clk 0:02:36]}  Qc6 {[%clk 0:02:18]} 12. Be4 {[%clk 0:02:20]}  Qb5 {[%clk 0:02:11]} 13. Ne2 {[%clk 0:01:55]}  Be6 {[%clk 0:01:56]} 14. O-O {[%clk 0:01:43]}  Na6 {[%clk 0:01:47]} 15. Nec3 {[%clk 0:01:37]}  Qa5 {[%clk 0:01:39]} 16. a3 {[%clk 0:01:36]}  Bd6 {[%clk 0:01:36]} 17. Rfd1 {[%clk 0:01:29]}  Be5 {[%clk 0:01:11]} 18. f4 {[%clk 0:01:13]}  Bxc3 {[%clk 0:01:11]} 19. Qxc3 {[%clk 0:01:12]}  Qxc3 {[%clk 0:01:08]} 20. Nxc3 {[%clk 0:01:13]}  Nc5 {[%clk 0:01:08]} 21. Bd5 {[%clk 0:01:11]}  Bg4 {[%clk 0:01:07]} 22. Rd4 {[%clk 0:01:06]}  a5 {[%clk 0:01:03]} 23. h3 {[%clk 0:01:06]}  Be6 {[%clk 0:01:01]} 24. Rad1 {[%clk 0:01:01]}  Rfe8 {[%clk 0:00:52]} 25. Kf2 {[%clk 0:00:56]}  Bxd5 {[%clk 0:00:49]} 26. Rxd5 {[%clk 0:00:53]}  Rac8 {[%clk 0:00:49]} 27. Kf3 {[%clk 0:00:47]}  Re6 {[%clk 0:00:33]} 28. Rd8+ {[%clk 0:00:46]}  Rxd8 {[%clk 0:00:33]} 29. Rxd8+ {[%clk 0:00:47]}  Kh7 {[%clk 0:00:34]} 30. Rc8 {[%clk 0:00:40]}  Nd3 {[%clk 0:00:29]} 31. Rc7 {[%clk 0:00:31]}  Nxb2 {[%clk 0:00:23]} 32. Rxb7 {[%clk 0:00:28]}  Nc4 {[%clk 0:00:23]} 33. Nd5 {[%clk 0:00:28]}  f5 {[%clk 0:00:19]} 34. a4 {[%clk 0:00:24]}  Nd2+ {[%clk 0:00:18]} 35. Ke2 {[%clk 0:00:22]}  Ne4 {[%clk 0:00:19]} 36. Kd3 {[%clk 0:00:16]}  Nc5+ {[%clk 0:00:18]} 37. Kc4 {[%clk 0:00:16]}  Nxb7 {[%clk 0:00:19]} 38. g4 {[%clk 0:00:13]}  fxg4 {[%clk 0:00:17]} 39. hxg4 {[%clk 0:00:14]}  g6 {[%clk 0:00:13]} 40. Kd4 {[%clk 0:00:11]}  Nd6 {[%clk 0:00:11]} 41. g5 {[%clk 0:00:07]}  hxg5 {[%clk 0:00:11]} 42. fxg5 {[%clk 0:00:08]}  Nf5+ {[%clk 0:00:08]} 43. Kd3 {[%clk 0:00:06]}  Kg7 {[%clk 0:00:06]} 44. e4 {[%clk 0:00:06]}  Ne7 {[%clk 0:00:06]} 45. Ne3 {[%clk 0:00:03]}  Nc6 {[%clk 0:00:06]} 46. Nc4 {[%clk 0:00:03]}  Ne5+ {[%clk 0:00:06]} 47. Nxe5 {[%clk 0:00:02]}  Rxe5 {[%clk 0:00:07]} 0-1


[Site "https://www.chess.com"]

[Event "Titled Tuesday Blitz February 07 Early 2023"]
[White "SicilianPanzer"]
[Black "Garayev, Kanan"]
[BlackFideId "13406671"]
[WhiteElo "2245"]
[BlackElo "2346"]
[Result "0-1"]
[Round "08"]
[TimeControl "180+2"]
[Date "2023.02.07"]
[WhiteClock "0:00:04"]
[BlackClock "0:00:52"]

1. d4 {[%clk 0:03:00]}  d5 {[%clk 0:02:58]} 2. c4 {[%clk 0:03:00]}  e6 {[%clk 0:02:58]} 3. Nc3 {[%clk 0:03:00]}  a6 {[%clk 0:02:58]} 4. cxd5 {[%clk 0:02:50]}  exd5 {[%clk 0:02:58]} 5. Nf3 {[%clk 0:02:50]}  Nf6 {[%clk 0:02:56]} 6. Bg5 {[%clk 0:02:48]}  Be6 {[%clk 0:02:55]} 7. e3 {[%clk 0:02:47]}  Be7 {[%clk 0:02:55]} 8. Bd3 {[%clk 0:02:43]}  Nbd7 {[%clk 0:02:50]} 9. O-O {[%clk 0:02:42]}  O-O {[%clk 0:02:47]} 10. Ne2 {[%clk 0:02:25]}  h6 {[%clk 0:02:40]} 11. Bh4 {[%clk 0:02:23]}  Bg4 {[%clk 0:02:37]} 12. Bg3 {[%clk 0:01:58]}  Bxf3 {[%clk 0:02:16]} 13. gxf3 {[%clk 0:01:59]}  Nh5 {[%clk 0:02:16]} 14. Nf4 {[%clk 0:01:52]}  Nxf4 {[%clk 0:02:15]} 15. Bxf4 {[%clk 0:01:51]}  Bg5 {[%clk 0:02:01]} 16. Bg3 {[%clk 0:01:46]}  f5 {[%clk 0:01:57]} 17. f4 {[%clk 0:01:22]}  Be7 {[%clk 0:01:51]} 18. Qh5 {[%clk 0:01:20]}  Qe8 {[%clk 0:01:45]} 19. Qh3 {[%clk 0:01:12]}  Qf7 {[%clk 0:01:39]} 20. Kh1 {[%clk 0:01:04]}  c5 {[%clk 0:01:37]} 21. dxc5 {[%clk 0:00:59]}  Nxc5 {[%clk 0:01:37]} 22. Be2 {[%clk 0:00:48]}  Ne4 {[%clk 0:01:35]} 23. Rac1 {[%clk 0:00:42]}  Rac8 {[%clk 0:01:27]} 24. f3 {[%clk 0:00:35]}  Nd2 {[%clk 0:01:22]} 25. Rfd1 {[%clk 0:00:33]}  Nc4 {[%clk 0:01:22]} 26. Bxc4 {[%clk 0:00:26]}  dxc4 {[%clk 0:01:22]} 27. Rd7 {[%clk 0:00:25]}  Qe6 {[%clk 0:01:21]} 28. Rxb7 {[%clk 0:00:20]}  Qxe3 {[%clk 0:01:18]} 29. Qf1 {[%clk 0:00:19]}  Bf6 {[%clk 0:01:11]} 30. Rxc4 {[%clk 0:00:12]}  Rcd8 {[%clk 0:00:59]} 31. Rc2 {[%clk 0:00:10]}  Rfe8 {[%clk 0:00:56]} 32. Kg2 {[%clk 0:00:08]}  Rd2+ {[%clk 0:00:52]} 33. Bf2 {[%clk 0:00:04]} 0-1


[Site "https://www.chess.com"]

[Event "Titled Tuesday Blitz February 07 Early 2023"]
[White "Jain Kashish Manoj"]
[Black "Buchenau, Frank"]
[WhiteFideId "35081098"]
[BlackFideId "4604350"]
[WhiteElo "2375"]
[BlackElo "2222"]
[Result "1-0"]
[Round "08"]
[TimeControl "180+2"]
[Date "2023.02.07"]
[WhiteClock "0:00:20"]
[BlackClock "0:00:02"]

1. Nf3 {[%clk 0:03:00]}  Nf6 {[%clk 0:02:59]} 2. g3 {[%clk 0:03:00]}  b6 {[%clk 0:02:59]} 3. Bg2 {[%clk 0:03:01]}  Bb7 {[%clk 0:02:59]} 4. O-O {[%clk 0:03:02]}  e6 {[%clk 0:02:58]} 5. d3 {[%clk 0:03:03]}  d5 {[%clk 0:02:57]} 6. Nbd2 {[%clk 0:03:03]}  Be7 {[%clk 0:02:43]} 7. e4 {[%clk 0:03:01]}  dxe4 {[%clk 0:02:43]} 8. Ng5 {[%clk 0:03:01]}  Nbd7 {[%clk 0:02:42]} 9. Ngxe4 {[%clk 0:03:00]}  Qc8 {[%clk 0:02:29]} 10. Re1 {[%clk 0:02:59]}  Nxe4 {[%clk 0:02:22]} 11. dxe4 {[%clk 0:02:58]}  O-O {[%clk 0:02:17]} 12. Qe2 {[%clk 0:02:53]}  Nc5 {[%clk 0:02:04]} 13. a4 {[%clk 0:02:44]}  a5 {[%clk 0:02:03]} 14. b3 {[%clk 0:02:42]}  Bf6 {[%clk 0:01:57]} 15. e5 {[%clk 0:02:43]}  Be7 {[%clk 0:01:57]} 16. Bb2 {[%clk 0:02:38]}  Bxg2 {[%clk 0:01:55]} 17. Kxg2 {[%clk 0:02:39]}  Qb7+ {[%clk 0:01:55]} 18. Qf3 {[%clk 0:02:27]}  Qxf3+ {[%clk 0:01:53]} 19. Nxf3 {[%clk 0:02:28]}  Rfd8 {[%clk 0:01:52]} 20. Rad1 {[%clk 0:02:28]}  Kf8 {[%clk 0:01:42]} 21. Nd4 {[%clk 0:02:26]}  Rd5 {[%clk 0:01:35]} 22. Nc6 {[%clk 0:02:24]}  Rxd1 {[%clk 0:01:16]} 23. Rxd1 {[%clk 0:02:25]}  Ke8 {[%clk 0:01:09]} 24. Ba3 {[%clk 0:02:21]}  Bf8 {[%clk 0:01:07]} 25. h4 {[%clk 0:02:06]}  h5 {[%clk 0:01:06]} 26. Kf3 {[%clk 0:01:59]}  Na6 {[%clk 0:00:57]} 27. Bxf8 {[%clk 0:01:57]}  Kxf8 {[%clk 0:00:57]} 28. Rd4 {[%clk 0:01:51]}  Ke8 {[%clk 0:00:50]} 29. Kf4 {[%clk 0:01:50]}  f6 {[%clk 0:00:45]} 30. f3 {[%clk 0:01:50]}  Nc5 {[%clk 0:00:38]} 31. g4 {[%clk 0:01:43]}  hxg4 {[%clk 0:00:37]} 32. fxg4 {[%clk 0:01:44]}  Nd7 {[%clk 0:00:36]} 33. g5 {[%clk 0:01:36]}  fxe5+ {[%clk 0:00:31]} 34. Nxe5 {[%clk 0:01:36]}  Nxe5 {[%clk 0:00:29]} 35. Kxe5 {[%clk 0:01:37]}  Ke7 {[%clk 0:00:29]} 36. Rf4 {[%clk 0:01:36]}  Rd8 {[%clk 0:00:24]} 37. Rd4 {[%clk 0:01:18]}  Rf8 {[%clk 0:00:20]} 38. Rf4 {[%clk 0:01:10]}  Rd8 {[%clk 0:00:19]} 39. c4 {[%clk 0:01:11]}  Rd3 {[%clk 0:00:18]} 40. g6 {[%clk 0:01:09]}  Re3+ {[%clk 0:00:18]} 41. Kd4 {[%clk 0:01:09]}  Rxb3 {[%clk 0:00:19]} 42. Rf7+ {[%clk 0:01:09]}  Kd6 {[%clk 0:00:18]} 43. Rxg7 {[%clk 0:01:09]}  Rg3 {[%clk 0:00:15]} 44. h5 {[%clk 0:01:07]}  Rg4+ {[%clk 0:00:15]} 45. Kd3 {[%clk 0:01:05]}  Ke5 {[%clk 0:00:15]} 46. Rxc7 {[%clk 0:01:05]}  Rg3+ {[%clk 0:00:14]} 47. Ke2 {[%clk 0:01:05]}  Kf6 {[%clk 0:00:11]} 48. Rf7+ {[%clk 0:00:52]}  Kg5 {[%clk 0:00:11]} 49. Rh7 {[%clk 0:00:53]}  Kf6 {[%clk 0:00:06]} 50. Rb7 {[%clk 0:00:47]}  Kg5 {[%clk 0:00:06]} 51. Rxb6 {[%clk 0:00:43]}  e5 {[%clk 0:00:03]} 52. Kf2 {[%clk 0:00:29]}  Rg4 {[%clk 0:00:03]} 53. g7 {[%clk 0:00:21]}  Kxh5 {[%clk 0:00:03]} 54. Rb7 {[%clk 0:00:21]}  e4 {[%clk 0:00:02]} 55. Ke3 {[%clk 0:00:21]}  Kh4 {[%clk 0:00:02]} 56. c5 {[%clk 0:00:20]}  Kg3 {[%clk 0:00:02]} 57. c6 {[%clk 0:00:20]} 1-0


[Site "https://www.chess.com"]

[Event "Titled Tuesday Blitz February 07 Early 2023"]
[White "Ansh M Shah"]
[Black "Lymar, Vladislav"]
[WhiteFideId "25033379"]
[BlackFideId "14162180"]
[WhiteElo "2171"]
[BlackElo "2119"]
[Result "0-1"]
[Round "08"]
[TimeControl "180+2"]
[Date "2023.02.07"]
[WhiteClock "0:00:08"]
[BlackClock "0:00:04"]

1. d4 {[%clk 0:03:00]}  d5 {[%clk 0:03:00]} 2. c4 {[%clk 0:03:01]}  e6 {[%clk 0:03:00]} 3. g3 {[%clk 0:03:01]}  c5 {[%clk 0:03:00]} 4. Bg2 {[%clk 0:03:02]}  dxc4 {[%clk 0:02:57]} 5. Nf3 {[%clk 0:03:02]}  Nc6 {[%clk 0:02:56]} 6. O-O {[%clk 0:02:23]}  Nf6 {[%clk 0:02:31]} 7. dxc5 {[%clk 0:02:18]}  Qxd1 {[%clk 0:02:30]} 8. Rxd1 {[%clk 0:02:19]}  Bxc5 {[%clk 0:02:31]} 9. Nbd2 {[%clk 0:02:20]}  Ng4 {[%clk 0:02:15]} 10. Ne4 {[%clk 0:01:47]}  Be7 {[%clk 0:02:12]} 11. h3 {[%clk 0:01:20]}  Nge5 {[%clk 0:02:11]} 12. Bf4 {[%clk 0:01:12]}  Nxf3+ {[%clk 0:02:02]} 13. Bxf3 {[%clk 0:01:10]}  e5 {[%clk 0:01:59]} 14. Be3 {[%clk 0:01:08]}  Be6 {[%clk 0:01:54]} 15. Bc5 {[%clk 0:01:02]}  f5 {[%clk 0:01:44]} 16. Nd6+ {[%clk 0:00:59]}  Bxd6 {[%clk 0:01:39]} 17. Rxd6 {[%clk 0:00:58]}  Kf7 {[%clk 0:01:22]} 18. Bxc6 {[%clk 0:00:56]}  bxc6 {[%clk 0:01:23]} 19. Rxc6 {[%clk 0:00:56]}  Rhc8 {[%clk 0:01:21]} 20. Rxc8 {[%clk 0:00:54]}  Bxc8 {[%clk 0:01:21]} 21. Rd1 {[%clk 0:00:39]}  a5 {[%clk 0:01:10]} 22. Rd5 {[%clk 0:00:30]}  e4 {[%clk 0:01:07]} 23. Rd6 {[%clk 0:00:24]}  Rb8 {[%clk 0:01:04]} 24. Bd4 {[%clk 0:00:24]}  Be6 {[%clk 0:00:59]} 25. Ra6 {[%clk 0:00:21]}  Rb5 {[%clk 0:00:22]} 26. e3 {[%clk 0:00:16]}  g5 {[%clk 0:00:20]} 27. Kg2 {[%clk 0:00:14]}  c3 {[%clk 0:00:18]} 28. Bxc3 {[%clk 0:00:13]}  Bxa2 {[%clk 0:00:16]} 29. Rxa5 {[%clk 0:00:13]}  Rxa5 {[%clk 0:00:17]} 30. Bxa5 {[%clk 0:00:14]}  Ke6 {[%clk 0:00:17]} 31. Bd8 {[%clk 0:00:14]}  g4 {[%clk 0:00:16]} 32. hxg4 {[%clk 0:00:13]}  fxg4 {[%clk 0:00:17]} 33. Kf1 {[%clk 0:00:14]}  Kd5 {[%clk 0:00:17]} 34. Ke1 {[%clk 0:00:14]}  Kc4 {[%clk 0:00:17]} 35. Kd2 {[%clk 0:00:15]}  Kb3 {[%clk 0:00:17]} 36. Bf6 {[%clk 0:00:15]}  Bb1 {[%clk 0:00:17]} 37. Bc3 {[%clk 0:00:14]}  Bd3 {[%clk 0:00:17]} 38. Bd4 {[%clk 0:00:14]}  Bc4 {[%clk 0:00:18]} 39. Be5 {[%clk 0:00:14]}  Bd5 {[%clk 0:00:18]} 40. Kc1 {[%clk 0:00:15]}  Bc6 {[%clk 0:00:17]} 41. Kd2 {[%clk 0:00:15]}  Kc4 {[%clk 0:00:16]} 42. Kc2 {[%clk 0:00:15]}  Ba4+ {[%clk 0:00:17]} 43. Kb1 {[%clk 0:00:15]}  Kd3 {[%clk 0:00:16]} 44. Ka2 {[%clk 0:00:11]}  Ke2 {[%clk 0:00:16]} 45. Ka3 {[%clk 0:00:12]}  Bc6 {[%clk 0:00:15]} 46. b4 {[%clk 0:00:12]}  Kxf2 {[%clk 0:00:15]} 47. Bf4 {[%clk 0:00:12]}  h5 {[%clk 0:00:14]} 48. Kb3 {[%clk 0:00:13]}  Bb5 {[%clk 0:00:11]} 49. Kc3 {[%clk 0:00:13]}  Kg2 {[%clk 0:00:05]} 50. Kd4 {[%clk 0:00:11]}  Bd3 {[%clk 0:00:03]} 51. Kc5 {[%clk 0:00:09]}  Kh3 {[%clk 0:00:04]} 52. b5 {[%clk 0:00:08]}  h4 {[%clk 0:00:04]} 53. gxh4 {[%clk 0:00:08]}  Kxh4 {[%clk 0:00:05]} 54. b6 {[%clk 0:00:08]}  Ba6 {[%clk 0:00:05]} 55. Kd6 {[%clk 0:00:07]}  g3 {[%clk 0:00:05]} 56. Bxg3+ {[%clk 0:00:07]}  Kxg3 {[%clk 0:00:05]} 57. Kc7 {[%clk 0:00:07]}  Kf3 {[%clk 0:00:04]} 58. Kb8 {[%clk 0:00:06]}  Bc4 {[%clk 0:00:04]} 59. Kc7 {[%clk 0:00:05]}  Bd5 {[%clk 0:00:04]} 60. Kd6 {[%clk 0:00:05]}  Ba8 {[%clk 0:00:04]} 61. Kc7 {[%clk 0:00:05]}  Kxe3 {[%clk 0:00:04]} 62. Kb8 {[%clk 0:00:06]}  Bd5 {[%clk 0:00:04]} 63. Kc7 {[%clk 0:00:06]}  Kd3 {[%clk 0:00:04]} 64. Kd6 {[%clk 0:00:07]}  Ba8 {[%clk 0:00:04]} 65. Kc7 {[%clk 0:00:07]}  e3 {[%clk 0:00:04]} 66. Kb8 {[%clk 0:00:08]}  Bf3 {[%clk 0:00:04]} 0-1


[Site "https://www.chess.com"]

[Event "Titled Tuesday Blitz February 07 Early 2023"]
[White "Dudzinski, Pawel"]
[Black "Ordekalog"]
[WhiteFideId "1117890"]
[WhiteElo "2186"]
[BlackElo "2555"]
[Result "1-0"]
[Round "08"]
[TimeControl "180+2"]
[Date "2023.02.07"]
[WhiteClock "0:01:31"]
[BlackClock "0:01:48"]

1. e4 {[%clk 0:03:00]}  d5 {[%clk 0:02:56]} 2. e5 {[%clk 0:02:56]}  c5 {[%clk 0:02:55]} 3. f4 {[%clk 0:02:57]}  Nc6 {[%clk 0:02:53]} 4. Nf3 {[%clk 0:02:57]}  Bg4 {[%clk 0:02:53]} 5. h3 {[%clk 0:02:53]}  Bxf3 {[%clk 0:02:53]} 6. Qxf3 {[%clk 0:02:54]}  Nd4 {[%clk 0:02:51]} 7. Qd1 {[%clk 0:02:54]}  e6 {[%clk 0:02:52]} 8. g3 {[%clk 0:02:54]}  g5 {[%clk 0:02:50]} 9. c3 {[%clk 0:02:55]}  gxf4 {[%clk 0:02:47]} 10. cxd4 {[%clk 0:02:52]}  fxg3 {[%clk 0:02:45]} 11. Bb5+ {[%clk 0:02:41]}  Ke7 {[%clk 0:02:44]} 12. O-O {[%clk 0:02:41]}  Qb6 {[%clk 0:02:41]} 13. Na3 {[%clk 0:02:33]}  Nh6 {[%clk 0:02:33]} 14. d3 {[%clk 0:02:29]}  Rg8 {[%clk 0:02:32]} 15. Qh5 {[%clk 0:02:09]}  Rg6 {[%clk 0:01:53]} 16. Bg5+ {[%clk 0:02:02]}  f6 {[%clk 0:01:53]} 17. Rxf6 {[%clk 0:01:37]}  Rxg5 {[%clk 0:01:48]} 18. Qxg5 {[%clk 0:01:31]} 1-0


[Site "https://www.chess.com"]